bitfinex/quotes_SOLUSD_20260308
["timestamp","ask_amount","ask_price","bid_price","bid_amount"]
[1772988243464,12.23184917,81.754,81.717,0.5]
[1772988244041,4.79144246,81.77,81.718,0.5]
[1772988244460,12.22882578,81.774,81.718,0.5]
[1772988244461,4.79144246,81.76,81.718,0.5]
[1772988244653,4.79144246,81.76,81.72,0.5]
[1772988247266,4.79144246,81.77,81.722,0.5]
[1772988249149,4.79144246,81.77,81.724,0.5]
[1772988249666,12.22957355,81.769,81.724,0.5]
[1772988250544,12.22887038,81.774,81.724,0.5]
[1772988250750,4.79144246,81.76,81.724,0.5]
[1772988251264,4.79144246,81.76,81.726,0.5]
[1772988252167,12.23008284,81.766,81.726,0.5]
[1772988254473,4.79144246,81.75,81.72,0.5]
[1772988256867,4.79144246,81.75,81.701,3.69383402]
[1772988256868,4.79144246,81.77,81.722,0.5]
[1772988260154,12.22957355,81.769,81.723,42.82760055]
[1772988260361,12.22957355,81.769,81.724,0.5]
[1772988262074,4.79144246,81.77,81.725,0.5]
[1772988262276,4.79144246,81.78,81.727,0.5]
[1772988262469,4.79144246,81.78,81.728,0.5]
[1772988263662,12.22807811,81.779,81.73,0.28432314]
[1772988263863,12.22807811,81.779,81.731,0.5]
[1772988267378,4.79144246,81.8,81.702,1.22396024]
[1772988267379,4.79144246,81.79,81.734,0.5]
[1772988268178,12.22663596,81.789,81.734,0.5]
[1772988268487,4.79144246,81.78,81.734,0.5]
[1772988269375,30.56370941,81.797,81.736,0.14216157]
[1772988269376,4.79144246,81.79,81.736,0.14216157]
[1772988269589,4.79144246,81.79,81.737,0.5]
[1772988270583,12.22658303,81.789,81.74,0.5]
[1772988271883,12.22658303,81.789,81.742,0.5]
[1772988272087,4.79144246,81.78,81.742,0.5]
[1772988273476,12.22807811,81.779,81.743,12.23346341]
[1772988273682,12.22807811,81.779,81.744,0.5]
[1772988276566,12.22807811,81.779,81.746,0.5]
[1772988279595,12.22807811,81.779,81.748,0.5]
[1772988281376,4.79144246,81.77,81.748,0.5]
[1772988281774,12.22957355,81.769,81.748,0.5]
[1772988281994,12.22957355,81.769,81.749,12.23256553]
[1772988282189,12.22822764,81.778,81.75,0.5]
[1772988283671,12.22822764,81.778,81.74,0.5]
[1772988283893,4.79144246,81.77,81.74,0.5]
[1772988284579,12.22822764,81.778,81.74,0.5]
[1772988284779,12.22822764,81.778,81.742,0.5]
[1772988285797,12.22822764,81.778,81.743,12.23346341]
[1772988285997,12.22822764,81.778,81.744,0.5]
[1772988288499,12.22822764,81.778,81.745,12.2331641]
[1772988288699,12.22822764,81.778,81.746,0.5]
[1772988290494,0.4637835,81.767,81.723,30.59095613]
[1772988292000,0.4637835,81.765,81.714,0.28432314]
[1772988292401,0.4637835,81.765,81.715,0.4799917]
[1772988297504,0.4637835,81.763,81.718,0.4799917]
[1772988299987,12.23062058,81.762,81.721,0.4799917]
[1772988300193,0.4637835,81.761,81.721,0.4799917]
[1772988300493,0.4637835,81.761,81.704,104.9]
[1772988300494,4.79144246,81.73,81.655,104.4]
[1772988300695,4.79144246,81.75,81.61,27.52116217]
[1772988300696,4.79144246,81.69,81.656,0.5]
[1772988300912,4.79144246,81.68,81.65,0.7]
[1772988301209,4.79144246,81.66,81.65,0.2]
[1772988301393,4.79144246,81.66,81.63,0.2]
[1772988301595,0.2,81.648,81.63,0.2]
[1772988301797,0.2,81.648,81.584,61.28646769]
[1772988301798,0.2,81.648,81.621,0.5]
[1772988302011,12.50848836,81.7,81.58,0.1]
[1772988302012,4.8028603,81.68,81.623,12.25144873]
[1772988302213,4.8028603,81.69,81.624,0.5]
[1772988302395,0.28432314,81.689,81.624,0.5]
[1772988302594,4.8028603,81.68,81.627,0.28432314]
[1772988302790,4.8028603,81.68,81.628,0.5]
[1772988303914,12.243049,81.679,81.63,0.5]
[1772988306493,42.84280362,81.694,81.632,0.5]
[1772988306821,4.8028603,81.68,81.633,0.5]
[1772988309319,4.8028603,81.67,81.635,0.5]
[1772988310115,43.13499466,81.679,81.627,0.5]
[1772988310116,4.8028603,81.66,81.627,0.5]
[1772988310317,4.8028603,81.64,81.62,0.1]
[1772988310517,4.8028603,81.65,81.622,0.5]
[1772988311517,12.24754742,81.649,81.62,0.1]
[1772988311824,4.8028603,81.64,81.62,0.1]
[1772988312916,3.69383402,81.676,81.62,0.1]
[1772988312917,12.24080103,81.694,81.621,0.5]
[1772988313102,4.8028603,81.66,81.621,0.5]
[1772988313611,42.86116655,81.659,81.622,0.5]
[1772988313821,4.8028603,81.65,81.622,0.5]
[1772988314903,42.86116655,81.659,81.622,0.5]
[1772988316213,4.8028603,81.65,81.624,0.5]
[1772988316413,4.8028603,81.64,81.62,0.1]
[1772988318715,4.8028603,81.63,81.62,0.1]
[1772988321414,4.8028603,81.63,81.61,0.6]
[1772988323429,4.8028603,81.63,81.611,12.25325017]
[1772988324412,4.8028603,81.62,81.611,12.25325017]
[1772988324630,4.8028603,81.62,81.61,0.1]
[1772988324924,49.7,81.655,81.61,0.1]
[1772988324925,12.24799745,81.646,81.61,0.6]
[1772988325126,17.05032025,81.65,81.61,0.6]
[1772988325324,4.8028603,81.64,81.61,0.6]
[1772988328839,4.8028603,81.63,81.61,0.1]
[1772988329044,4.8028603,81.62,81.6,0.5]
[1772988329528,4.8028603,81.62,81.601,12.25460574]
[1772988329730,42.87166672,81.639,81.588,0.5]
[1772988329731,4.8028603,81.61,81.588,0.5]
[1772988330128,0.28432314,81.636,81.588,0.5]
[1772988330129,4.8028603,81.62,81.588,0.5]
[1772988330835,12.25204915,81.619,81.588,0.5]
[1772988331043,4.8028603,81.61,81.588,0.5]
[1772988331236,4.8028603,81.61,81.589,12.25655419]
[1772988331529,12.25204915,81.619,81.573,0.5]
[1772988331530,4.8028603,81.6,81.573,0.5]
[1772988331729,42.88217203,81.619,81.57,12.35937571]
[1772988331730,4.8028603,81.59,81.57,0.1]
[1772988331931,4.8028603,81.58,81.57,0.1]
[1772988332140,4.8028603,81.57,81.532,0.5]
[1772988332438,4.8028603,81.55,81.53,0.1]
[1772988332816,0.28432314,81.576,81.53,0.1]
[1772988332817,4.8028603,81.54,81.53,0.1]
[1772988333240,4.8028603,81.54,81.5,0.28432314]
[1772988333241,30.6519851,81.561,81.522,0.5]
[1772988333543,4.8028603,81.56,81.522,0.5]
[1772988334043,4.8028603,81.54,81.521,0.5]
[1772988334339,4.8028603,81.54,81.522,0.5]
[1772988334515,4.8028603,81.55,81.522,0.5]
[1772988334711,4.8028603,81.54,81.522,0.5]
[1772988335439,12.26406995,81.539,81.513,0.5]
[1772988335644,12.26406995,81.539,81.51,0.1]
[1772988335645,0.28432314,81.529,81.51,0.1]
[1772988335842,4.8028603,81.52,81.498,4.03711873]
[1772988336139,0.28432314,81.529,81.494,0.5]
[1772988336140,4.8028603,81.51,81.494,12.27081989]
[1772988336442,4.8028603,81.5,81.489,0.5]
[1772988336649,4.8028603,81.51,81.489,0.5]
[1772988337026,4.8028603,81.52,81.489,0.5]
[1772988337215,42.93003629,81.528,81.491,0.5]
[1772988337419,4.8028603,81.51,81.491,0.5]
[1772988338623,4.8028603,81.53,81.491,0.5]
[1772988339265,4.8028603,81.52,81.492,12.27114317]
[1772988339430,4.8028603,81.52,81.493,0.5]
[1772988339633,12.04342559,81.52,81.493,0.5]
[1772988340237,12.04342559,81.53,81.493,0.5]
[1772988341327,24.30891711,81.53,81.495,0.5]
[1772988341736,12.04342559,81.53,81.495,0.5]
[1772988342248,12.26557421,81.529,81.495,0.5]
[1772988342635,14.19059536,81.548,81.496,0.5]
[1772988343435,14.19059536,81.548,81.499,0.5]
[1772988343640,12.04342559,81.54,81.499,0.5]
[1772988345041,12.26286681,81.547,81.499,0.5]
[1772988345743,14.19059536,81.548,81.501,0.5]
[1772988345958,14.19059536,81.548,81.502,0.5]
[1772988346259,12.04342559,81.54,81.502,0.5]
[1772988346557,12.04342559,81.53,81.502,0.5]
[1772988347660,12.04342559,81.54,81.502,0.5]
[1772988348756,12.26406995,81.539,81.504,0.5]
[1772988350351,12.26406995,81.539,81.503,42.94320454]
[1772988350352,12.25670441,81.588,81.507,0.5]
[1772988350564,12.04342559,81.58,81.508,0.5]
[1772988350764,12.04342559,81.57,81.508,0.5]
[1772988351059,12.04342559,81.57,81.514,0.5]
[1772988352154,12.04342559,81.57,81.517,0.5]
[1772988353257,12.25955939,81.569,81.517,0.5]
[1772988354249,12.25955939,81.569,81.488,4.950707]
[1772988354250,12.04342559,81.56,81.52,0.5]
[1772988355761,42.90845786,81.569,81.52,0.5]
[1772988356132,42.90845786,81.569,81.521,42.93372259]
[1772988356338,42.90845786,81.569,81.522,0.5]
[1772988357562,12.04342559,81.56,81.522,0.5]
[1772988358358,12.04342559,81.56,81.521,42.93372259]
[1772988358359,12.26106254,81.559,81.524,0.5]
[1772988360744,12.04342559,81.54,81.493,0.5]
[1772988360950,12.04342559,81.53,81.493,0.5]
[1772988361549,12.04001013,81.53,81.493,0.5]
[1772988362159,12.04001013,81.54,81.495,0.5]
[1772988362558,12.04001013,81.52,81.49,0.5]
[1772988362760,0.28432314,81.547,81.465,0.5]
[1772988362761,12.04001013,81.5,81.465,0.5]
[1772988362951,5.10909883,81.533,81.466,0.5]
[1772988363151,12.04001013,81.5,81.466,0.5]
[1772988364446,12.2700892,81.499,81.468,0.5]
[1772988364745,12.2675303,81.516,81.468,0.5]
[1772988365151,12.04001013,81.51,81.468,0.5]
[1772988365944,12.26858383,81.509,81.47,0.5]
[1772988366553,0.46394818,81.479,81.422,12.2816929]
[1772988366753,4.82477569,81.505,81.422,42.98592517]
[1772988366754,12.04001013,81.46,81.422,42.98592517]
[1772988367243,12.04001013,81.47,81.422,42.98592517]
[1772988367445,0.46394818,81.459,81.422,12.2816929]
[1772988367966,0.46394818,81.457,81.41,0.1]
[1772988368553,0.46394818,81.457,81.411,0.45076811]
[1772988369255,12.74051466,81.456,81.414,0.45076811]
[1772988369757,0.46394818,81.455,81.414,0.45076811]
[1772988370656,12.27656648,81.456,81.414,0.45076811]
[1772988371046,0.46394818,81.478,81.417,0.45076811]
[1772988371364,12.04001013,81.47,81.42,0.45076811]
[1772988372265,12.2734023,81.477,81.42,0.45076811]
[1772988372468,12.04001013,81.47,81.42,0.45076811]
[1772988372841,0.46394818,81.469,81.42,0.45076811]
[1772988373644,12.27475818,81.468,81.423,0.45076811]
[1772988373857,0.46394818,81.469,81.423,0.45076811]
[1772988374856,0.46394818,81.469,81.426,0.45076811]
[1772988375755,0.46394818,81.476,81.426,0.45076811]
[1772988376373,12.04001013,81.47,81.426,0.45076811]
[1772988376757,12.27370359,81.475,81.426,0.45076811]
[1772988376758,12.04001013,81.46,81.426,0.45076811]
[1772988377076,12.74006254,81.459,81.429,0.45076811]
[1772988377269,0.46394818,81.458,81.429,0.45076811]
[1772988380176,0.46394818,81.458,81.431,0.45076811]
[1772988380377,0.46394818,81.456,81.431,0.45076811]
[1772988381974,0.46394818,81.456,81.43,12.2804863]
[1772988381975,0.46394818,81.449,81.43,12.2804863]
[1772988382681,0.46394818,81.449,81.425,0.45076811]
[1772988383558,0.46394818,81.449,81.426,12.73185768]
[1772988384278,0.46394818,81.449,81.427,0.45076811]
[1772988384458,0.46394818,81.456,81.427,0.45076811]
[1772988385269,0.46394818,81.449,81.426,12.28108957]
[1772988385696,0.46394818,81.447,81.42,12.28188299]
[1772988386171,0.46394818,81.447,81.42,12.7326511]
[1772988387284,0.46394818,81.447,81.421,0.45076811]
[1772988388182,0.46394818,81.445,81.421,0.45076811]
[1772988390286,0.46394818,81.439,81.41,0.1]
[1772988390594,0.46394818,81.439,81.412,0.45076811]
[1772988391271,0.46394818,81.446,81.412,0.45076811]
[1772988391466,12.27786475,81.448,81.412,0.45076811]
[1772988392286,12.27786475,81.448,81.39,0.28432314]
[1772988392287,0.46394818,81.419,81.385,0.45076811]
[1772988392495,12.06369141,81.41,81.385,0.45076811]
[1772988392894,12.06369141,81.41,81.385,12.73792148]
[1772988393476,0.4,81.409,81.377,0.45910367]
[1772988393675,0.4,81.409,81.363,30.72627252]
[1772988393676,12.36369141,81.41,81.387,12.28697457]
[1772988393978,0.3,81.409,81.383,12.28756702]
[1772988394487,0.3,81.407,81.383,12.28756702]
[1772988394991,3.69383402,81.397,81.351,0.5]
[1772988395186,12.06369141,81.38,81.351,0.5]
[1772988396691,12.28818245,81.379,81.352,0.5]
[1772988396887,12.06369141,81.4,81.352,0.5]
[1772988397099,0.49314655,81.399,81.351,43.02342272]
[1772988397677,12.06369141,81.39,81.351,43.02342272]
[1772988398082,0.49314655,81.399,81.351,43.02342272]
[1772988398598,12.06369141,81.36,81.34,0.1]
[1772988398794,0.49314655,81.359,81.34,0.1]
[1772988399178,12.55683796,81.35,81.34,0.1]
[1772988399382,0.49314655,81.349,81.32,0.45910367]
[1772988399791,12.06369141,81.36,81.321,0.5]
[1772988400727,12.06369141,81.36,81.323,0.5]
[1772988400901,12.06369141,81.37,81.324,0.5]
[1772988401099,42.98328563,81.427,81.327,0.5]
[1772988401291,12.06369141,81.4,81.327,0.5]
[1772988401999,12.06369141,81.42,81.332,0.5]
[1772988402187,12.06369141,81.42,81.339,4.82477569]
[1772988402391,12.06369141,81.42,81.344,0.5]
[1772988402778,12.28214544,81.419,81.349,0.5]
[1772988403181,12.28214544,81.419,81.35,0.5]
[1772988403904,12.28214544,81.419,81.355,0.5]
[1772988404086,0.28432314,81.439,81.358,0.5]
[1772988404280,12.06369141,81.46,81.363,0.5]
[1772988404606,12.27611436,81.459,81.372,0.5]
[1772988404897,0.28432314,81.458,81.374,0.5]
[1772988405096,0.28432314,81.458,81.377,0.5]
[1772988405296,0.28432314,81.458,81.38,0.5]
[1772988405495,0.28432314,81.458,81.383,0.5]
[1772988405693,12.27466576,81.469,81.39,0.5]
[1772988405998,0.28432314,81.478,81.397,0.5]
[1772988406205,42.95585365,81.479,81.397,0.5]
[1772988406501,0.28432314,81.478,81.397,0.5]
[1772988406801,12.06369141,81.47,81.397,0.5]
[1772988406997,42.95585365,81.479,81.397,0.5]
[1772988407393,19.7163013,81.5,81.412,0.5]
[1772988407594,0.28432314,81.498,81.412,0.5]
[1772988407795,12.27069145,81.495,81.413,12.28305061]
[1772988408008,3.69383402,81.492,81.418,0.5]
[1772988408806,12.06369141,81.48,81.418,0.5]
[1772988409105,0.28432314,81.479,81.418,0.5]
[1772988409788,0.28432314,81.489,81.418,0.5]
[1772988409988,12.27174553,81.488,81.42,0.5]
[1772988412103,12.27174553,81.488,81.421,42.98645312]
[1772988412407,12.27174553,81.488,81.423,0.5]
[1772988412999,12.06369141,81.46,81.423,0.5]
[1772988413504,0.28432314,81.469,81.423,0.5]
[1772988414709,12.27460751,81.469,81.425,0.5]
[1772988416004,12.27310104,81.479,81.428,0.5]
[1772988417210,0.28432314,81.488,81.43,0.5]
[1772988417592,12.27159493,81.489,81.43,0.5]
[1772988419195,12.27159493,81.489,81.429,104.38541549]
[1772988419196,43.22963534,81.499,81.433,0.5]
[1772988419817,12.06369141,81.49,81.433,0.5]
[1772988421319,7.65260989,81.5,81.439,0.5]
[1772988421502,49.02436406,81.593,81.439,0.5]
[1772988421503,12.26854603,81.51,81.439,0.5]
[1772988421896,12.26854603,81.51,81.441,0.5]
[1772988422117,24.33223744,81.51,81.441,0.5]
[1772988422909,12.26854603,81.51,81.441,0.5]
[1772988423416,42.93477594,81.519,81.446,0.5]
[1772988423717,42.93477594,81.519,81.449,0.5]
[1772988424102,0.28432314,81.499,81.449,0.5]
[1772988424411,12.04455359,81.5,81.365,49.16096853]
[1772988424412,12.04455359,81.47,81.438,12.27925601]
[1772988424604,12.04455359,81.47,81.436,12.77950406]
[1772988425011,12.04455359,81.47,81.436,12.27950406]
[1772988425408,12.27460751,81.469,81.429,12.28063711]
[1772988426421,12.27460751,81.469,81.43,0.5]
[1772988427728,0.28432314,81.481,81.432,0.5]
[1772988428027,12.04455359,81.48,81.432,0.5]
[1772988428209,30.68171996,81.482,81.432,0.5]
[1772988429013,12.27219733,81.485,81.432,0.5]
[1772988429438,12.27219733,81.485,81.433,0.5]
[1772988429723,12.27159493,81.489,81.435,0.28432314]
[1772988429905,12.04455359,81.48,81.436,0.5]
[1772988431703,12.04455359,81.47,81.436,0.5]
[1772988432018,12.27460751,81.469,81.436,0.5]
[1772988432325,12.27460751,81.469,81.437,12.27943072]
[1772988432705,12.27460751,81.469,81.438,0.5]
[1772988435609,12.55742418,81.479,81.44,0.5]
[1772988435914,12.27310104,81.479,81.44,0.5]
[1772988436908,12.27232942,81.485,81.44,0.5]
[1772988438025,12.27159493,81.489,81.441,42.97589665]
[1772988438246,12.27159493,81.489,81.442,0.5]
[1772988440308,12.55441234,81.499,81.444,0.5]
[1772988440707,43.22963534,81.499,81.444,0.5]
[1772988441231,12.04455359,81.49,81.444,0.5]
[1772988443722,12.2700892,81.499,81.447,0.5]
[1772988444930,12.26768079,81.515,81.45,0.5]
[1772988447625,12.26768079,81.515,81.453,0.5]
[1772988449511,12.26768079,81.515,81.455,0.78432314]
[1772988449717,12.26768079,81.515,81.456,0.5]
[1772988450829,12.04455359,81.51,81.456,0.5]
[1772988451037,0.28432314,81.509,81.456,0.5]
[1772988451740,42.94057024,81.508,81.458,0.5]
[1772988453836,42.94057024,81.508,81.46,0.5]
[1772988454024,12.26873435,81.508,81.46,0.5]
[1772988455816,42.93598678,81.517,81.462,0.5]
[1772988457129,42.93598678,81.517,81.464,0.5]
[1772988457327,12.26737981,81.517,81.465,0.5]
[1772988457721,12.26617601,81.525,81.465,0.5]
[1772988458046,0.2,81.55,81.468,0.5]
[1772988458047,30.66094104,81.537,81.468,0.5]
[1772988458423,12.26406995,81.539,81.47,0.5]
[1772988458636,12.26406995,81.539,81.471,0.5]
[1772988459025,30.65760509,81.546,81.477,3.69383402]
[1772988459345,30.65760509,81.546,81.479,0.5]
[1772988459547,12.26256606,81.549,81.481,0.5]
[1772988459726,12.26256606,81.549,81.482,0.5]
[1772988460847,12.26256606,81.549,81.484,0.5]
[1772988461639,12.26256606,81.549,81.482,1.22726491]
[1772988461640,12.26256606,81.549,81.489,0.5]
[1772988461839,12.26256606,81.549,81.49,0.5]
[1772988462043,0.2,81.55,81.49,0.5]
[1772988462240,0.2,81.55,81.489,0.28432314]
[1772988462241,1e-08,81.55,81.493,0.5]
[1772988462443,1e-08,81.55,81.496,0.5]
[1772988462638,1e-08,81.55,81.497,0.78432314]
[1772988462949,1e-08,81.55,81.498,0.5]
[1772988463324,1e-08,81.55,81.5,0.5]
[1772988463746,1e-08,81.55,81.507,0.5]
[1772988467445,12.25865767,81.575,81.511,0.5]
[1772988470051,12.25865767,81.575,81.517,0.5]
[1772988471942,30.64240777,81.587,81.517,0.5]
[1772988472147,19.83664126,81.576,81.52,0.5]
[1772988472966,50.48290977,81.576,81.52,0.5]
[1772988473952,12.24455359,81.6,81.522,0.28432314]
[1772988474150,30.63838564,81.597,81.528,0.5]
[1772988475859,12.25505214,81.599,81.53,0.5]
[1772988476036,12.25505214,81.599,81.536,0.5]
[1772988476356,42.8926825,81.599,81.537,0.5]
[1772988478253,42.8926825,81.599,81.54,0.5]
[1772988479155,42.8926825,81.599,81.541,3.69383402]
[1772988479362,0.2,81.6,81.543,0.5]
[1772988480136,0.2,81.6,81.548,0.5]
[1772988480137,12.25505214,81.599,81.548,0.5]
[1772988480337,42.8926825,81.599,81.549,0.5]
[1772988484763,12.04455359,81.59,81.55,12.26241569]
[1772988484963,0.28432314,81.598,81.55,12.26241569]
[1772988485152,0.28432314,81.598,81.55,12.76241569]
[1772988486447,0.28432314,81.589,81.539,12.26406995]
[1772988486646,12.02261272,81.57,81.525,0.5]
[1772988486845,0.28432314,81.579,81.525,0.5]
[1772988487761,42.90372403,81.578,81.526,12.26602556]
[1772988487957,42.90372403,81.578,81.527,0.5]
[1772988489466,12.53937528,81.599,81.53,0.5]
[1772988489770,30.63803432,81.598,81.53,0.5]
[1772988489970,42.89323665,81.598,81.533,0.5]
[1772988492672,42.89323665,81.598,81.535,0.78432314]
[1772988492975,42.89323665,81.598,81.536,0.5]
[1772988494259,42.89323665,81.598,81.539,0.5]
[1772988495275,0.28432314,81.597,81.541,0.5]
[1772988495584,4.09281454,81.59,81.541,0.5]
[1772988496450,4.09281454,81.59,81.54,42.92371841]
[1772988496451,42.89793967,81.589,81.543,0.5]
[1772988498857,42.89793967,81.589,81.545,0.5]
[1772988503269,30.64138548,81.589,81.547,0.5]
[1772988504361,12.25550272,81.596,81.547,0.5]
[1772988504678,42.89425952,81.596,81.547,0.5]
[1772988504858,4.8084914,81.59,81.547,0.5]
[1772988505260,0.28432314,81.588,81.539,0.5]
[1772988505470,4.8084914,81.57,81.528,0.5]
[1772988506579,42.90845786,81.569,81.528,12.76572465]
[1772988508690,42.90845786,81.569,81.529,0.5]
[1772988510778,42.90845786,81.569,81.53,12.76542377]
[1772988511364,42.90845786,81.569,81.531,0.5]
[1772988511561,4.8084914,81.56,81.523,0.5]
[1772988511883,4.8084914,81.56,81.508,30.67181024]
[1772988511884,4.8084914,81.56,81.522,12.26656149]
[1772988512972,42.91371889,81.559,81.518,0.5]
[1772988516584,42.91371889,81.559,81.52,0.5]
[1772988519084,42.91371889,81.559,81.522,0.5]
[1772988519789,42.91371889,81.559,81.516,0.5]
[1772988519974,4.8084914,81.55,81.512,0.5]
[1772988520289,4.8084914,81.55,81.513,12.26798179]
[1772988520591,4.8084914,81.55,81.514,0.5]
[1772988521280,42.91898122,81.549,81.516,0.5]
[1772988525099,4.8084914,81.54,81.511,12.26819368]
[1772988526081,12.26406995,81.539,81.505,0.5]
[1772988526396,12.26406995,81.539,81.494,0.5]
[1772988526397,4.8084914,81.52,81.494,0.5]
[1772988527398,12.26707884,81.519,81.494,0.5]
[1772988529581,12.26707884,81.519,81.489,0.5]
[1772988529783,42.93477594,81.519,81.489,0.5]
[1772988530083,42.93477594,81.519,81.484,12.77230884]
[1772988530285,12.26707884,81.519,81.485,0.5]
[1772988532700,4.8084914,81.52,81.486,12.27204673]
[1772988532904,4.8084914,81.52,81.487,0.5]
[1772988533606,4.8084914,81.53,81.487,0.5]
[1772988536197,42.92950974,81.529,81.489,0.5]
[1772988536602,12.26557421,81.529,81.489,0.5]
[1772988537698,12.26557421,81.529,81.49,42.95005521]
[1772988537901,12.26557421,81.529,81.491,0.5]
[1772988540015,30.66026877,81.539,81.493,0.5]
[1772988540016,42.92433872,81.539,81.493,0.5]
[1772988540213,12.26406995,81.539,81.493,0.5]
[1772988541306,42.91898122,81.549,81.495,0.5]
[1772988542801,4.8084914,81.53,81.495,0.5]
[1772988543412,4.8084914,81.54,81.496,12.27054088]
[1772988543614,4.8084914,81.54,81.497,0.5]
[1772988545709,4.81563967,81.54,81.499,0.5]
[1772988549816,12.26406995,81.539,81.501,0.5]
[1772988550711,42.92424483,81.539,81.501,0.5]
[1772988552818,42.92424483,81.539,81.503,0.5]
[1772988555906,42.92424483,81.539,81.505,0.5]
[1772988556414,12.26406995,81.539,81.505,0.5]
[1772988558825,12.26406995,81.539,81.507,0.5]
[1772988561918,12.26406995,81.539,81.509,0.5]
[1772988564919,12.26406995,81.539,81.508,12.26873435]
[1772988564920,12.26406995,81.539,81.511,0.5]
[1772988566436,42.9193205,81.549,81.513,0.5]
[1772988570838,4.81563967,81.54,81.513,0.5]
[1772988571214,42.9193205,81.549,81.515,0.5]
[1772988573746,12.26256606,81.549,81.517,0.5]
[1772988574836,42.91898122,81.549,81.517,0.5]
[1772988577423,4.81563967,81.53,81.511,0.5]
[1772988577825,4.81563967,81.53,81.505,0.5]
[1772988578020,42.92950974,81.529,81.477,30.68320361]
[1772988578236,12.26557421,81.529,81.494,0.5]
[1772988581454,42.92452335,81.539,81.496,0.5]
[1772988583048,42.92452335,81.539,81.498,0.5]
[1772988584753,42.42452335,81.539,81.498,0.5]
[1772988587050,42.42452335,81.539,81.5,0.5]
[1772988594857,42.42452335,81.539,81.502,0.5]
[1772988597257,42.42452335,81.539,81.501,12.2697881]
[1772988597258,42.42452335,81.539,81.504,0.5]
[1772988600876,42.42452335,81.539,81.506,0.5]
[1772988602349,12.26406995,81.539,81.506,0.5]
[1772988603263,12.26406995,81.539,81.484,0.28432314]
[1772988603264,4.81563967,81.52,81.486,0.5]
[1772988603467,4.81563967,81.51,81.486,0.5]
[1772988604362,4.81563967,81.51,81.487,12.77189613]
[1772988604565,4.81563967,81.51,81.488,0.5]
[1772988606450,12.26858383,81.509,81.488,0.5]
[1772988607645,4.81883796,81.51,81.488,0.5]
[1772988609276,4.81883796,81.51,81.489,12.27159493]
[1772988609455,4.81883796,81.51,81.489,12.77159493]
[1772988609657,17.08740117,81.51,81.49,0.5]
[1772988609857,12.26856321,81.51,81.49,0.5]
[1772988611876,4.81883796,81.51,81.472,0.5]
[1772988615181,12.26858383,81.509,81.473,12.27400488]
[1772988615375,12.26858383,81.509,81.474,0.5]
[1772988616574,12.26722932,81.518,81.474,0.5]
[1772988618957,12.26722932,81.518,81.476,0.5]
[1772988621868,12.26722932,81.518,81.477,12.2734023]
[1772988622064,12.26722932,81.518,81.478,0.5]
[1772988624063,12.26722932,81.518,81.48,0.5]
[1772988625776,12.26722932,81.518,81.481,12.27279979]
[1772988626081,12.26722932,81.518,81.482,0.5]
[1772988627689,0.46944893,81.499,81.443,42.97484129]
[1772988627878,0.46944893,81.487,81.447,42.97273072]
[1772988628075,0.46944893,81.479,81.447,12.27792306]
[1772988628397,12.27174553,81.488,81.43,0.1]
[1772988628398,0.46944893,81.459,81.43,0.1]
[1772988629185,0.4,81.449,81.43,0.1]
[1772988629364,0.4,81.449,81.41,0.1]
[1772988629365,0.4,81.449,81.414,12.28275305]
[1772988629560,0.4,81.449,81.415,0.48930258]
[1772988629772,0.4,81.439,81.41,0.58930258]
[1772988629991,0.4,81.437,81.41,0.58930258]
[1772988630388,0.4,81.429,81.393,0.48930258]
[1772988630893,0.3,81.419,81.396,12.88554412]
[1772988631391,0.3,81.419,81.397,0.48930258]
[1772988632286,0.3,81.419,81.399,0.48930258]
[1772988632690,0.3,81.425,81.399,0.48930258]
[1772988633188,0.3,81.425,81.396,0.6]
[1772988633419,0.3,81.419,81.396,0.6]
[1772988634799,0.3,81.417,81.396,0.6]
[1772988635594,0.3,81.409,81.396,0.3]